bitfinex-derivatives/quotes_SOLF0:USTF0_20250501
["timestamp","ask_amount","ask_price","bid_price","bid_amount"]
[1746103715844,12.91853,151.99,151.98,6.5785]
[1746103717651,17.46894777,151.99,151.98,6.5785]
[1746103717955,6.576,152.05,152.02,6.5769]
[1746103720759,1.9866,152.06,152.01,23.58]
[1746103721257,6.5768,152.03,152.01,23.58]
[1746103722356,6.577,152.02,152.01,23.58]
[1746103723159,6.5765,152.04,152.01,23.58]
[1746103723453,1.9866,152.06,152.01,23.58]
[1746103725258,6.577,152.02,152.01,23.58]
[1746103725762,6.5768,152.03,152.01,23.58]
[1746103726061,1.9866,152.06,152.01,23.58]
[1746103726361,1.9866,152.06,152.01,30.1574]
[1746103726362,6.5764,152.04,152.01,30.1574]
[1746103726663,1.9866,152.06,152.01,23.58]
[1746103727961,6.5769,152.03,152.01,23.58]
[1746103729264,6.577,152.02,152.01,23.58]
[1746103730166,6.5767,152.03,152.01,23.58]
[1746103730665,1.9866,152.06,152.01,23.58]
[1746103731161,6.577,152.02,152.01,23.58]
[1746103731352,6.577,152.02,151.92,13.61376693]
[1746103731353,1.9866,152.06,151.98,23.56]
[1746103731558,1.9866,152.06,151.96,23.56]
[1746103731755,6.5787,151.99,151.95,30.1399]
[1746103732066,23.56,152.03,151.95,30.1399]
[1746103732368,4.55026631,152.02,151.95,30.1399]
[1746103732565,23.56,152.03,151.95,30.1399]
[1746103732968,23.56,152.03,151.93,23.56]
[1746103733166,4.1171,152.02,151.93,23.56]
[1746103733467,6.5799,151.96,151.93,30.1408]
[1746103733965,4.1171,152.02,151.93,23.56]
[1746103735563,6.5801,151.95,151.93,30.1409]
[1746103735766,6.5801,151.95,151.93,23.56]
[1746103736164,6.5798,151.96,151.93,30.1409]
[1746103737571,6.5792,151.97,151.94,6.5801]
[1746103738969,6.5792,151.97,151.95,6.58]
[1746103739672,6.5792,151.97,151.94,6.5804]
[1746103740273,6.5789,151.98,151.95,6.58]
[1746103740474,27.6971,152.02,151.93,23.56]
[1746103741374,6.5783,152.0,151.96,6.5793]
[1746103741575,27.6971,152.02,151.93,23.56]
[1746103741972,4.543314,152.01,151.93,23.56]
[1746103742179,27.6971,152.02,151.93,23.56]
[1746103742376,4.1171,152.02,151.98,6.5787]
[1746103742576,23.56,152.05,151.97,23.56]
[1746103742970,6.5775,152.01,151.98,6.5785]
[1746103743379,6.5772,152.02,151.99,6.5782]
[1746103744080,6.1436,152.06,151.97,23.56]
[1746103744477,6.5764,152.04,152.01,6.5772]
[1746103744980,6.1436,152.06,151.97,23.56]
[1746103745172,6.5769,152.03,152.0,6.5777]
[1746103747281,4.54347418,152.02,152.0,6.5777]
[1746103747477,4.54347418,152.02,152.01,6.5775]
[1746103748785,4.54347418,152.02,152.0,6.5777]
[1746103748982,4.54347418,152.02,151.97,23.56]
[1746103749175,11.12077418,152.02,151.97,23.56]
[1746103749376,11.12077418,152.02,151.99,6.578]
[1746103749677,4.54347418,152.02,151.97,23.56]
[1746103749878,4.54347418,152.02,151.97,30.139]
[1746103750481,6.5782,152.0,151.97,30.139]
[1746103750874,4.54347418,152.02,151.97,23.56]
[1746103751081,6.5788,151.98,151.97,23.56]
[1746103751481,6.5788,151.98,151.95,6.5799]
[1746103752981,4.54330648,151.97,151.95,6.5799]
[1746103753182,6.5788,151.98,151.95,6.5799]
[1746103753983,6.5792,151.97,151.95,6.5799]
[1746103754884,6.579,151.98,151.95,6.5799]
[1746103755387,6.5782,152.0,151.94,23.56]
[1746103755688,4.54347418,152.02,151.94,23.56]
[1746103755882,6.5782,152.0,151.94,23.56]
[1746103756092,4.54347418,152.02,151.94,23.56]
[1746103756687,6.579,151.98,151.94,23.56]
[1746103756888,6.579,151.98,151.95,6.5798]
[1746103757289,6.579,151.98,151.94,23.56]
[1746103757589,6.579,151.98,151.95,6.5798]
[1746103757991,6.579,151.98,151.94,23.56]
[1746103757992,6.579,151.98,151.96,6.5796]
[1746103758179,4.54347418,152.02,151.89,1.14528311]
[1746103758379,4.54347418,152.02,151.9,23.56]
[1746103758587,4.54347418,152.02,151.93,6.5809]
[1746103758882,6.58,151.96,151.93,6.5809]
[1746103759082,23.56,152.0,151.93,6.5809]
[1746103759792,6.58,151.96,151.93,6.5809]
[1746103759983,6.58,151.96,151.91,23.56]
[1746103759984,4.54324257,151.95,151.91,23.56]
[1746103760189,4.54347418,152.02,151.91,23.56]
[1746103760388,4.54347418,152.02,151.96,6.5793]
[1746103760594,4.54347418,152.02,151.96,23.56]
[1746103761791,6.579,151.98,151.96,23.56]
[1746103762191,4.54347418,152.02,151.96,23.56]
[1746103762392,4.54347418,152.02,151.96,30.1394]
[1746103763187,6.5786,151.99,151.96,30.1394]
[1746103764894,6.5786,151.99,151.97,6.5792]
[1746103765195,6.5786,151.99,151.96,23.56]
[1746103765491,6.5788,151.98,151.96,30.1394]
[1746103766090,6.5792,151.97,151.96,23.56]
[1746103766389,6.5792,151.97,151.93,23.56]
[1746103766696,6.5792,151.97,151.94,6.5804]
[1746103766898,6.5801,151.95,151.93,23.56]
[1746103767193,4.54347418,152.02,151.93,30.1407]
[1746103767498,6.5796,151.97,151.93,23.56]
[1746103767797,6.5796,151.97,151.94,6.5803]
[1746103768599,6.5797,151.96,151.94,6.5803]
[1746103769495,4.54347418,152.02,151.93,23.56]
[1746103770296,6.5798,151.96,151.94,6.5804]
[1746103771094,6.5801,151.95,151.93,30.1408]
[1746103771395,12.46886061,152.01,151.93,23.56]
[1746103771784,3.9722,152.0,151.93,23.56]
[1746103771989,23.56,151.99,151.93,23.56]
[1746103772190,6.5799,151.96,151.93,30.1409]
[1746103772389,6.5799,151.96,151.93,23.56]
[1746103772593,23.56,151.99,151.93,23.56]
[1746103772794,6.58,151.96,151.93,23.56]
[1746103772989,3.9722,152.0,151.93,23.56]
[1746103773188,4.5432557,151.99,151.93,23.56]
[1746103773396,3.9722,152.0,151.93,23.56]
[1746103773598,6.579,151.98,151.94,6.5803]
[1746103774690,4.54325515,151.97,151.94,6.5803]
[1746103774896,6.579,151.98,151.94,6.5803]
[1746103775996,6.579,151.98,151.95,6.5801]
[1746103777202,28.10347418,152.02,151.96,6.5793]
[1746103777801,6.5783,152.0,151.96,6.5793]
[1746103777998,6.5783,152.0,151.97,6.5792]
[1746103778202,4.54347418,152.02,151.93,23.56]
[1746103778403,4.54347418,152.02,151.94,23.56]
[1746103778808,6.5787,151.99,151.94,23.56]
[1746103779504,6.5787,151.99,151.95,6.5798]
[1746103781304,4.55025349,151.98,151.95,6.5798]
[1746103781504,6.5787,151.99,151.95,6.5798]
[1746103782106,6.5781,152.0,151.96,6.5795]
[1746103783706,6.5784,151.99,151.96,6.5795]
[1746103785406,4.54347418,152.02,151.94,23.56]
[1746103785709,4.54347418,152.02,151.94,36.02886061]
[1746103785906,4.55042626,152.01,151.95,4.1255]
[1746103786407,4.55042626,152.01,152.0,6.5779]
[1746103786709,4.55042626,152.01,152.0,30.1379]
[1746103789706,4.54347418,152.02,152.01,6.5775]
[1746103791109,3.38665418,152.02,152.01,6.5775]
[1746103791310,23.56,152.11,152.04,6.576]
[1746103791607,25.6007,152.11,152.04,6.576]
[1746103791805,25.6007,152.11,152.04,30.136]
[1746103792311,25.6007,152.11,152.04,23.56]
[1746103792511,6.5756,152.06,152.04,23.56]
[1746103793310,6.5751,152.07,152.04,23.56]
[1746103793713,25.6007,152.11,152.04,23.56]
[1746103793908,6.5741,152.09,152.05,6.5757]
[1746103794214,25.6007,152.11,152.04,23.56]
[1746103794413,2.0407,152.11,152.04,23.56]
[1746103794818,6.5743,152.09,152.06,6.5751]
[1746103795209,2.0407,152.11,152.06,6.5751]
[1746103795715,2.0407,152.11,152.05,6.5756]
[1746103795910,6.5744,152.09,152.05,6.5756]
[1746103796414,6.5745,152.08,152.05,6.5756]
[1746103798214,6.5742,152.09,152.05,6.5756]
[1746103798422,6.5742,152.09,152.06,6.5752]
[1746103798714,6.5742,152.09,152.04,23.56]
[1746103798914,6.5738,152.1,152.06,6.5751]
[1746103799212,2.0407,152.11,152.06,6.5751]
[1746103799617,6.5737,152.1,152.06,6.5751]
[1746103800215,6.5743,152.09,152.06,6.5751]
[1746103802611,6.5745,152.08,152.05,6.5756]
[1746103803920,2.0407,152.11,152.04,23.56]
[1746103804722,23.54,152.1,152.04,23.56]
[1746103804923,6.5756,152.06,152.04,23.56]
[1746103805318,23.54,152.1,152.04,23.56]
[1746103805523,6.5751,152.07,152.04,30.1361]
[1746103806128,6.5753,152.06,152.04,30.1361]
[1746103806323,6.5753,152.06,152.04,23.56]
[1746103806523,23.54,152.1,152.04,23.56]
[1746103806828,36.00886061,152.1,152.0,23.54]
[1746103807124,36.00886061,152.1,152.01,6.5773]
[1746103807325,6.5764,152.04,152.01,6.5773]
[1746103807826,6.5766,152.03,152.0,30.1178]
[1746103808322,6.5773,152.02,152.0,23.54]
[1746103809225,10.91633827,152.01,152.0,23.54]
[1746103809524,6.5775,152.01,151.97,23.54]
[1746103809827,6.5775,152.01,151.98,6.5785]
[1746103810127,6.5772,152.02,151.97,23.54]
[1746103810326,6.5772,152.02,151.98,6.5785]
[1746103810531,6.1297,152.05,151.97,23.54]
[1746103811432,6.5778,152.01,151.98,6.5787]
[1746103812829,6.578,152.0,151.98,6.5787]
[1746103813334,6.5772,152.02,151.99,6.5781]
[1746103813527,6.1297,152.05,151.97,23.54]
[1746103814529,6.5777,152.01,151.98,6.5785]
[1746103814729,6.5777,152.01,151.97,23.54]
[1746103815036,6.5777,152.01,151.98,6.5785]
[1746103815438,6.5773,152.02,151.98,6.5785]
[1746103815635,13.92044226,152.05,151.98,6.5785]
[1746103816040,6.5778,152.01,151.98,6.5785]
[1746103818043,6.5784,151.99,151.97,23.54]
[1746103818445,13.92044226,152.05,151.97,23.54]
[1746103819044,6.5782,152.0,151.97,30.1191]
[1746103819339,13.92044226,152.05,151.97,30.1191]
[1746103819340,13.92044226,152.05,151.97,23.54]
[1746103819537,6.5782,152.0,151.97,30.1192]
[1746103820548,6.5775,152.01,151.98,6.5785]
[1746103823351,4.33070344,152.0,151.98,6.5785]
[1746103823545,6.5775,152.01,151.98,6.5785]
[1746103823748,4.33882074,152.04,151.97,30.1188]
[1746103824253,6.5782,152.0,151.97,30.1188]
[1746103824751,4.33882074,152.04,151.97,23.54]
[1746103824952,6.5788,151.99,151.97,23.54]
[1746103825255,4.33882074,152.04,151.94,30.1202]
[1746103825555,7.79074226,152.02,151.94,30.1202]
[1746103825767,31.33074226,152.02,151.94,23.54]
[1746103826353,6.5799,151.96,151.94,23.54]
[1746103826653,6.5799,151.96,151.94,30.1204]
[1746103827047,6.5798,151.96,151.94,23.54]
[1746103828458,6.5798,151.96,151.94,30.1203]
[1746103829455,6.5794,151.97,151.94,30.1203]
[1746103829757,4.3350649,151.95,151.94,30.1203]
[1746103833063,8.67012992,151.95,151.94,30.1203]
[1746103833260,4.3350649,151.95,151.94,30.1203]
[1746103835066,4.3350649,151.95,151.94,23.54]
[1746103836256,4.3350649,151.95,151.94,30.1205]
[1746103836862,8.67013997,151.95,151.94,30.1205]
[1746103837065,4.3350649,151.95,151.94,30.1205]
[1746103837761,4.3350649,151.95,151.94,23.54]
[1746103838267,8.6701399,151.95,151.94,23.54]
[1746103838461,4.3350649,151.95,151.94,23.54]
[1746103843565,10.9151649,151.95,151.94,23.54]
[1746103844271,4.3350649,151.95,151.91,23.54]
[1746103844869,4.3350649,151.95,151.93,6.5806]
[1746103845665,4.3350649,151.95,151.94,6.5805]
[1746103846671,8.67015822,151.95,151.94,6.5805]
[1746103847267,4.3350649,151.95,151.94,6.5805]
[1746103847672,8.65786124,151.95,151.94,6.5805]
[1746103847873,4.3350649,151.95,151.94,6.5805]
[1746103848277,8.65786126,151.95,151.94,6.5805]
[1746103849275,4.3350649,151.95,151.94,6.5805]
[1746103849479,8.65894258,151.95,151.94,6.5805]
[1746103849880,4.3350649,151.95,151.94,6.5805]
[1746103850980,8.65892844,151.95,151.94,6.5805]
[1746103851376,8.65892844,151.95,151.94,30.1205]
[1746103851578,4.3350649,151.95,151.94,30.1205]
[1746103851786,23.54,152.06,151.94,23.54]
[1746103851993,25.5566,152.06,151.94,23.54]
[1746103852188,6.5769,152.03,152.0,6.5779]
[1746103852483,25.5566,152.06,151.93,7.79074226]
[1746103852484,25.5566,152.06,151.99,23.54]
[1746103852786,10.91522074,152.04,152.01,6.5772]
[1746103852985,4.33882074,152.04,152.01,6.5772]
[1746103853787,6.5766,152.03,152.0,6.5778]
[1746103857792,6.5766,152.03,152.01,6.5774]
[1746103858088,6.5766,152.03,151.99,23.54]
[1746103858289,6.5766,152.03,152.0,6.5777]
[1746103858589,6.5766,152.03,151.99,23.54]
[1746103858978,6.5766,152.03,152.0,6.5778]
[1746103860393,6.5766,152.03,152.01,6.5774]
[1746103861090,10.91522074,152.04,152.01,6.5774]
[1746103861593,6.5767,152.03,152.01,6.5774]
[1746103861887,4.33882074,152.04,152.01,6.5774]
[1746103862590,10.91522074,152.04,152.01,6.5774]
[1746103863092,10.91522074,152.04,152.02,6.577]
[1746103864191,10.91522074,152.04,152.01,6.5773]
[1746103864492,6.5766,152.03,152.01,6.5773]
[1746103866894,6.577,152.02,152.0,6.5778]
[1746103867095,4.33882074,152.04,151.99,23.54]
[1746103867496,10.91502074,152.04,152.02,6.5768]
[1746103868093,10.91502074,152.04,152.01,6.5773]
[1746103868391,6.5767,152.03,152.01,6.5773]
[1746103869001,4.21844739,152.02,152.01,6.5773]
[1746103869297,6.5767,152.03,152.0,6.5777]
[1746103869497,6.5772,152.02,151.99,23.54]
[1746103869798,6.5772,152.02,151.99,30.1181]
[1746103871697,4.33882074,152.04,151.99,23.54]
[1746103872201,10.79543121,152.03,151.99,30.118]
[1746103872404,4.21843121,152.02,151.99,30.118]
[1746103872598,4.33882074,152.04,151.99,30.118]
[1746103872798,6.5768,152.03,151.99,30.118]
[1746103872994,4.33882074,152.04,151.99,30.118]
[1746103873302,6.5768,152.03,152.0,6.5779]
[1746103873902,4.2184323,152.02,152.0,6.5779]
[1746103874102,4.2184323,152.01,152.0,6.5779]
[1746103874306,6.5768,152.03,152.01,6.5774]
[1746103874603,10.91522074,152.04,151.99,23.54]
[1746103874795,10.91522074,152.04,152.01,6.5773]
[1746103875603,10.91522074,152.04,151.99,23.54]
[1746103875604,4.33882074,152.04,151.99,23.54]
[1746103876201,4.33882074,152.04,152.03,6.5766]
[1746103876402,4.33882074,152.04,152.03,30.0966]
[1746103879105,4.33882074,152.04,152.03,23.52]
[1746103879707,10.91502074,152.04,152.03,23.52]
[1746103881408,10.91502074,152.04,152.01,6.5774]
[1746103881600,6.5767,152.03,152.01,6.5774]
[1746103882509,6.5771,152.02,152.0,23.52]
[1746103883207,6.5775,152.01,152.0,23.52]
[1746103883404,1.9904,152.03,151.97,23.52]
[1746103883706,6.0672,152.03,151.97,23.52]
[1746103884205,6.5779,152.01,151.98,6.5787]
[1746103885505,6.0672,152.03,151.97,30.0992]
[1746103886104,6.0672,152.03,151.97,23.52]
[1746103886311,7.79074226,152.02,151.97,23.52]
[1746103886515,7.79074226,152.02,151.94,23.52]
[1746103886712,6.5791,151.98,151.94,23.52]
[1746103887312,6.5791,151.98,151.95,6.58]
[1746103888713,6.5785,151.99,151.96,6.5796]
[1746103889513,6.5781,152.0,151.97,6.5789]
[1746103890017,6.5777,152.01,151.94,23.52]
[1746103890316,6.0672,152.03,151.94,23.52]
[1746103890514,12.6438,152.03,152.0,6.5775]
[1746103891112,6.5775,152.02,151.98,23.52]
[1746103891411,6.0672,152.03,151.98,23.52]
[1746103892117,12.6441,152.03,151.99,6.5781]
[1746103893709,10.91522074,152.04,151.98,23.52]
[1746103894114,10.91522074,152.04,152.0,6.5777]
[1746103894513,10.91522074,152.04,151.98,23.52]
[1746103895420,10.91522074,152.04,152.0,6.5776]
[1746103895625,6.5767,152.03,152.0,6.5776]
[1746103895820,4.33882074,152.04,151.98,23.52]
[1746103896024,6.5771,152.02,151.99,6.5781]
[1746103896219,4.33882074,152.04,151.98,23.52]
[1746103896720,6.5768,152.03,151.98,23.52]
[1746103897227,6.5768,152.03,152.0,6.5779]
[1746103899130,4.33882074,152.04,151.98,23.52]
[1746103900123,6.5775,152.02,151.98,30.0984]
[1746103900533,4.33882074,152.04,151.98,23.52]
[1746103900730,4.33882074,152.04,151.99,6.5783]
[1746103900930,4.33882074,152.04,151.98,23.52]
[1746103901331,6.5767,152.03,152.0,6.5776]
[1746103901933,10.91522074,152.04,152.01,6.5772]
[1746103902334,4.33882074,152.04,152.01,6.5772]
[1746103903232,6.5767,152.03,152.01,6.5772]
[1746103903428,4.23491814,152.02,152.01,6.5772]
[1746103903633,4.33882074,152.04,151.98,23.52]
[1746103903933,10.91532074,152.04,151.98,23.52]
[1746103904538,6.5767,152.03,151.98,23.52]
[1746103904737,6.5767,152.03,152.0,6.5776]
[1746103905035,6.5767,152.03,151.98,23.52]
[1746103905535,4.23798721,152.02,151.98,23.52]
[1746103905734,6.5767,152.03,151.98,23.52]
[1746103906931,10.91512074,152.04,152.01,6.5773]
[1746103907733,6.5767,152.03,152.01,6.5773]
[1746103907939,6.5767,152.03,152.0,6.5777]
[1746103908837,6.5767,152.03,152.01,6.5774]
[1746103909030,10.91522074,152.04,152.01,6.5774]
[1746103910236,10.91522074,152.04,152.02,6.5769]
[1746103910641,4.23798818,152.03,152.02,6.5769]
[1746103910839,6.5766,152.03,152.01,6.5772]
[1746103911335,4.33882074,152.04,152.01,6.5772]
[1746103911734,10.91532074,152.04,152.01,6.5772]
[1746103911939,4.33882074,152.04,152.01,6.5772]
[1746103912142,6.5767,152.03,152.01,6.5772]
[1746103912742,4.23798719,152.02,152.01,6.5772]
[1746103912943,10.91522074,152.04,152.01,6.5772]
[1746103914448,10.91522074,152.04,152.02,6.577]
[1746103914948,6.5766,152.03,152.0,23.5]
[1746103915146,6.5766,152.03,152.01,6.5772]
[1746103917145,10.91522074,152.04,152.02,6.577]
[1746103919439,6.5766,152.03,152.0,23.5]
[1746103919743,4.33882074,152.04,152.0,23.5]
[1746103920640,6.5768,152.03,152.0,23.5]
[1746103920846,4.33882074,152.04,152.0,23.5]
[1746103922153,4.33882074,152.04,152.02,6.5768]
[1746103922345,4.33882074,152.04,152.0,23.5]
[1746103922754,4.33882074,152.04,152.02,6.5768]
[1746103923050,10.91502074,152.04,152.02,6.5768]
[1746103923247,4.33882074,152.04,152.02,6.5768]
[1746103924247,4.33882074,152.04,152.03,6.5766]
[1746103932857,8.55652728,152.04,152.03,6.5766]
[1746103934055,4.33882074,152.04,152.03,6.5766]
[1746103935060,4.33882074,152.04,152.0,23.5]
[1746103935357,6.5767,152.03,152.0,23.5]
[1746103935563,4.33882074,152.04,152.02,7.79074226]
[1746103935762,3.8245,152.09,152.02,7.79074226]
[1746103936161,3.8245,152.09,152.04,6.5759]
[1746103936359,6.5748,152.08,152.04,30.0559]
[1746103937050,6.5751,152.07,152.04,30.0559]
[1746103938564,6.5747,152.08,152.05,6.5757]
[1746103939368,6.5745,152.08,152.05,6.5757]
[1746103941156,6.5749,152.07,152.05,6.5757]
[1746103942366,6.5749,152.07,151.99,520.86]
[1746103942367,3.8245,152.09,151.99,520.86]
[1746103942565,7.79074226,152.07,152.0,23.48]
[1746103942765,7.79074226,152.04,152.0,23.48]
[1746103942963,6.5775,152.01,151.98,6.5786]
[1746103943265,6.5775,152.01,151.97,23.48]
[1746103943466,6.5775,152.01,151.99,6.5781]
[1746103945173,6.5775,152.01,151.98,6.5784]
[1746103945764,6.5775,152.01,151.99,6.5783]
[1746103946566,6.5775,152.01,151.98,6.5787]
[1746103947472,6.5775,152.01,151.97,23.48]
[1746103947473,6.5779,152.0,151.97,30.059]
[1746103950069,6.5784,151.99,151.97,23.48]
[1746103950673,6.5781,152.0,151.97,30.0592]
[1746103951473,6.5781,152.0,151.98,6.5788]
[1746103951675,6.5777,152.01,151.98,6.5788]
[1746103951875,6.0631,152.03,151.97,23.48]
[1746103952075,6.0631,152.03,151.99,6.5782]
[1746103952576,6.0631,152.03,152.0,6.5779]
[1746103952977,4.1356,152.03,151.97,23.48]
[1746103953176,4.1356,152.03,152.0,6.5777]
[1746103954475,4.1356,152.03,152.01,6.5773]
[1746103954674,4.1356,152.03,151.97,23.48]
[1746103955275,10.69596243,152.02,151.98,6.5786]
[1746103955571,6.5774,152.02,151.98,6.5786]
[1746103956277,6.5776,152.01,151.98,6.5786]
[1746103956773,6.5782,152.0,151.97,6.5791]
[1746103956967,7.79074226,152.02,151.95,23.46]
[1746103957173,9.88564226,152.02,151.95,23.46]
[1746103958280,6.5782,152.0,151.97,6.5789]
[1746103958481,9.88564226,152.02,151.95,23.46]
[1746103958779,6.5785,151.99,151.96,6.5794]
[1746103959382,6.5789,151.98,151.95,30.0399]
[1746103960281,6.5789,151.98,151.96,6.5796]
[1746103960673,6.5785,151.99,151.96,6.5796]
[1746103963079,6.5785,151.99,151.95,23.46]
[1746103963080,6.5788,151.98,151.95,30.0399]
[1746103963383,33.36564226,152.02,151.95,23.46]
[1746103965177,20.94084226,152.07,151.97,6.579]
[1746103965382,29.477,152.06,151.95,23.46]
[1746103966383,6.5768,152.03,152.0,6.5777]
[1746103967379,6.5764,152.04,152.01,6.5772]
[1746103967581,5.997,152.06,151.99,23.48]
[1746103967783,23.48,152.09,152.0,31.27074226]
[1746103968084,6.5744,152.09,152.0,31.27074226]
[1746103969877,6.5744,152.09,152.06,6.5751]
[1746103970078,6.5738,152.1,152.06,30.0351]
[1746103971184,4.13548152,152.09,152.06,30.0351]
[1746103971388,4.13548152,152.08,152.06,30.0351]
[1746103971590,4.13548152,152.07,152.06,30.0351]
[1746103971887,6.5738,152.1,152.06,30.0351]
[1746103972287,6.5741,152.09,152.06,30.0351]
[1746103972689,4.13461284,152.08,152.06,30.0351]
[1746103972990,4.13461284,152.07,152.06,30.0351]
[1746103973888,6.5741,152.09,152.06,30.0351]
[1746103974290,6.5738,152.1,152.06,30.0351]
[1746103974790,6.5738,152.1,152.07,6.5748]
[1746103977191,4.13465255,152.09,152.07,6.5748]
[1746103977387,4.13465255,152.08,152.07,6.5748]
[1746103977792,6.5738,152.1,152.07,6.5748]
[1746103980996,4.13421446,152.09,152.07,6.5748]
[1746103981194,6.5738,152.1,152.07,6.5748]
[1746103981598,6.5741,152.09,152.06,30.0351]
[1746103982393,6.5741,152.09,152.07,6.5749]
[1746103983692,6.5741,152.09,152.06,30.0352]
[1746103984190,9.76514226,152.13,152.06,23.46]
[1746103984396,23.44,152.12,152.06,23.46]
[1746103984593,6.5749,152.07,152.06,23.46]
[1746103984788,23.44,152.12,152.06,23.46]
[1746103985293,6.574,152.09,152.07,6.5747]
[1746103986093,6.5737,152.1,152.07,6.5747]
[1746103986591,10.70751761,152.11,152.08,6.5744]
[1746103987898,4.13421761,152.11,152.08,6.5744]
[1746103988199,4.13684639,152.1,152.08,6.5744]
[1746103988394,10.70761761,152.11,152.08,6.5744]
[1746103989295,10.70761761,152.11,152.07,7.79074226]
[1746103989296,4.13421761,152.11,152.07,7.79074226]
[1746103989693,4.13421761,152.11,152.1,6.5736]
[1746103989890,4.13421761,152.11,152.1,30.0136]
[1746103990300,8.27110723,152.11,152.1,30.0136]
[1746103990490,4.13421761,152.11,152.1,30.0136]
[1746103990694,4.13421761,152.11,152.1,23.44]
[1746103991502,4.13421761,152.11,152.1,30.0136]
[1746103995801,4.13421761,152.11,152.1,23.44]
[1746103996199,8.27110579,152.11,152.06,23.44]
[1746103996399,6.5748,152.08,152.06,23.44]
[1746103997811,6.5749,152.07,152.06,23.44]
[1746103998408,10.71178401,152.07,152.06,23.44]
[1746103998609,6.5749,152.07,152.06,23.44]
[1746104001020,6.5757,152.06,152.03,6.5765]
[1746104001218,6.5757,152.06,152.03,30.0165]
[1746104001420,1.943,152.09,152.03,23.44]
[1746104002012,2.0858,152.08,152.0,23.44]
[1746104002420,6.5764,152.04,152.0,23.44]
[1746104002815,6.5759,152.05,152.0,23.44]
[1746104003120,2.0858,152.08,152.0,23.44]
[1746104003517,6.5762,152.04,152.01,6.5772]
[1746104004920,4.13687408,152.03,152.01,6.5772]
[1746104005110,6.5762,152.04,152.01,6.5772]
[1746104006622,4.1368738,152.03,152.01,6.5772]
[1746104006919,6.5762,152.04,152.01,6.5772]
[1746104007719,6.5755,152.06,152.02,6.5767]
[1746104007917,6.5755,152.06,152.0,23.44]
[1746104008315,6.5755,152.06,152.02,6.5766]
[1746104008515,6.5755,152.06,152.0,23.44]
[1746104008822,6.5755,152.06,152.03,6.5764]
[1746104009619,1.943,152.09,152.04,23.44]
[1746104009821,3.9724,152.12,152.05,23.44]
[1746104010321,4.13688366,152.1,152.05,23.44]
[1746104011123,10.71058366,152.1,152.05,23.44]
[1746104011419,4.13688366,152.1,152.05,23.44]
[1746104011620,4.13688366,152.1,152.07,6.5745]
[1746104012018,4.13685041,152.09,152.07,6.5745]
[1746104012221,4.13688366,152.1,152.07,6.5745]
[1746104013124,4.12465699,152.09,152.07,6.5745]
[1746104013421,4.12465699,152.08,152.06,6.5751]
[1746104013622,4.12465699,152.07,152.06,6.5751]
[1746104023226,4.13688366,152.1,152.09,6.574]
[1746104023427,4.13688366,152.1,152.09,29.994]
[1746104026731,6.0723,152.17,152.09,31.21074226]
[1746104027229,6.5717,152.15,152.11,6.5729]
[1746104027729,6.0723,152.17,152.11,6.5729]
[1746104028322,6.5721,152.14,152.11,6.5729]
[1746104029634,6.0723,152.17,152.1,6.5734]
[1746104029829,6.0723,152.17,152.09,23.42]
[1746104030133,6.5729,152.12,152.09,23.42]
[1746104031033,6.5729,152.12,152.09,29.9937]
[1746104033135,7.79074226,152.16,152.09,23.42]
[1746104033532,23.42,152.15,152.09,23.42]